[Event "Late-Titled-Tuesday-Blitz-April-16-2024"]
[Site "Chess.com"]
[Date "2024.04.16"]
[Round "3"]
[White "Jospem"]
[Black "Chess_Star1234"]
[Result "1-0"]
[WhiteElo "3049"]
[BlackElo "2527"]
[TimeControl "180+1"]
[EndTime "14:26:04 PDT"]
[Termination "Jospem won by resignation"]

1. e4 {[%clk 0:03:00.6]} 1... e5 {[%clk 0:03:00.1]} 2. Nf3 {[%clk 0:02:59]} 2...
Nc6 {[%clk 0:03:00.7]} 3. Nc3 {[%clk 0:02:59.7]} 3... Nf6 {[%clk 0:03:00.7]} 4.
h3 {[%clk 0:03:00.6]} 4... Bb4 {[%clk 0:02:57.5]} 5. a3 {[%clk 0:03:00.5]} 5...
Bxc3 {[%clk 0:02:56.8]} 6. dxc3 {[%clk 0:03:01.4]} 6... Nxe4 {[%clk 0:02:45.8]}
7. Nxe5 {[%clk 0:03:01.1]} 7... Nxe5 {[%clk 0:02:42.3]} 8. Qd4 {[%clk
0:02:59.7]} 8... O-O {[%clk 0:02:33.9]} 9. Qxe4 {[%clk 0:02:59.3]} 9... Re8
{[%clk 0:02:33]} 10. Be3 {[%clk 0:02:58.5]} 10... d5 {[%clk 0:02:16.4]} 11. Qf4
{[%clk 0:02:55.1]} 11... c6 {[%clk 0:02:07]} 12. O-O-O {[%clk 0:02:52.7]} 12...
Qe7 {[%clk 0:01:59.5]} 13. Be2 {[%clk 0:02:32.2]} 13... Ng6 {[%clk 0:01:55.5]}
14. Qg3 {[%clk 0:02:32.4]} 14... Bf5 {[%clk 0:01:47.6]} 15. h4 {[%clk
0:02:22.1]} 15... Qe5 {[%clk 0:01:45.1]} 16. Qxe5 {[%clk 0:01:53.9]} 16... Nxe5
{[%clk 0:01:46]} 17. Rd4 {[%clk 0:01:53.9]} 17... h6 {[%clk 0:01:35.2]} 18. Rhd1
{[%clk 0:01:50.9]} 18... Re7 {[%clk 0:01:25.9]} 19. b3 {[%clk 0:01:48]} 19... a6
{[%clk 0:01:06.9]} 20. c4 {[%clk 0:01:43.5]} 20... dxc4 {[%clk 0:01:07.8]} 21.
bxc4 {[%clk 0:01:44.4]} 21... Rae8 {[%clk 0:01:04.2]} 22. g4 {[%clk 0:01:40.6]}
22... Be6 {[%clk 0:01:03.2]} 23. g5 {[%clk 0:01:41.1]} 23... hxg5 {[%clk
0:01:00.3]} 24. hxg5 {[%clk 0:01:42]} 24... Rd7 {[%clk 0:00:56]} 25. Rxd7 {[%clk
0:01:35.6]} 25... Nxd7 {[%clk 0:00:56.9]} 26. Kb2 {[%clk 0:01:34.4]} 26... Ne5
{[%clk 0:00:56.1]} 27. Kc3 {[%clk 0:01:34.8]} 27... Bg4 {[%clk 0:00:41.1]} 28.
Bxg4 {[%clk 0:01:34.8]} 28... Nxg4 {[%clk 0:00:42]} 29. Bb6 {[%clk 0:01:35.5]}
29... Re7 {[%clk 0:00:29.4]} 30. Bc5 {[%clk 0:01:35.9]} 30... Rc7 {[%clk
0:00:28.5]} 31. Rd8+ {[%clk 0:01:36.2]} 31... Kh7 {[%clk 0:00:28.5]} 32. Bd6
{[%clk 0:01:36.9]} 1-0

[Event "Late-Titled-Tuesday-Blitz-April-16-2024"]
[Site "Chess.com"]
[Date "2024.04.16"]
[Round "3"]
[White "XiaoKangZhong"]
[Black "ChEsper99"]
[Result "1-0"]
[WhiteElo "2544"]
[BlackElo "2213"]
[TimeControl "180+1"]
[EndTime "14:26:04 PDT"]
[Termination "XiaoKangZhong won by resignation"]

1. b3 {[%clk 0:03:00.9]} 1... a5 {[%clk 0:02:55.8]} 2. c4 {[%clk 0:03:00]} 2...
a4 {[%clk 0:02:55.9]} 3. bxa4 {[%clk 0:02:59.9]} 3... Nf6 {[%clk 0:02:51.8]} 4.
Bb2 {[%clk 0:02:59.4]} 4... e6 {[%clk 0:02:46.9]} 5. Nc3 {[%clk 0:02:50.5]} 5...
d5 {[%clk 0:02:46.9]} 6. cxd5 {[%clk 0:02:45.9]} 6... exd5 {[%clk 0:02:43.4]} 7.
d4 {[%clk 0:02:45.7]} 7... Bb4 {[%clk 0:02:38]} 8. Qb3 {[%clk 0:02:34.5]} 8...
Nc6 {[%clk 0:02:28.8]} 9. e3 {[%clk 0:02:34.5]} 9... Ne4 {[%clk 0:01:51.3]} 10.
Bb5 {[%clk 0:02:31.4]} 10... Bxc3+ {[%clk 0:01:50.9]} 11. Bxc3 {[%clk
0:02:30.4]} 11... Nxc3 {[%clk 0:01:51.6]} 12. Qxc3 {[%clk 0:02:30.3]} 12... Bd7
{[%clk 0:01:49.9]} 13. Nf3 {[%clk 0:02:30.1]} 13... O-O {[%clk 0:01:48.8]} 14.
O-O {[%clk 0:02:30]} 14... Qe7 {[%clk 0:01:45.9]} 15. Rfc1 {[%clk 0:02:27]}
15... Rfc8 {[%clk 0:01:41.5]} 16. Rab1 {[%clk 0:02:25.2]} 16... Ra7 {[%clk
0:01:23.8]} 17. Qc5 {[%clk 0:02:23.1]} 17... Qxc5 {[%clk 0:01:13.7]} 18. Rxc5
{[%clk 0:02:24]} 18... Be6 {[%clk 0:01:04.1]} 19. Rbc1 {[%clk 0:01:53]} 19... h6
{[%clk 0:00:44.5]} 20. h3 {[%clk 0:01:51.2]} 20... Kf8 {[%clk 0:00:35.4]} 21.
Ne1 {[%clk 0:01:49.8]} 21... Ke7 {[%clk 0:00:35.4]} 22. Nd3 {[%clk 0:01:50.4]}
22... f6 {[%clk 0:00:11]} 23. R5c3 {[%clk 0:01:49.4]} 23... Kd6 {[%clk
0:00:02.2]} 24. Bxc6 {[%clk 0:01:49.3]} 24... bxc6 {[%clk 0:00:03.1]} 25. Nc5
{[%clk 0:01:49.9]} 25... Ra5 {[%clk 0:00:01.3]} 26. Nb7+ {[%clk 0:01:49]} 1-0

[Event "Late-Titled-Tuesday-Blitz-April-16-2024"]
[Site "Chess.com"]
[Date "2024.04.16"]
[Round "3"]
[White "Oleg_Papayan"]
[Black "Eloist"]
[Result "1-0"]
[WhiteElo "2692"]
[BlackElo "2472"]
[TimeControl "180+1"]
[EndTime "14:26:06 PDT"]
[Termination "Oleg_Papayan won by resignation"]

1. e4 {[%clk 0:03:00.9]} 1... e6 {[%clk 0:02:58.6]} 2. d4 {[%clk 0:02:56]} 2...
d5 {[%clk 0:02:58.8]} 3. Nc3 {[%clk 0:02:56.2]} 3... Nf6 {[%clk 0:02:58.9]} 4.
Bg5 {[%clk 0:02:54.8]} 4... dxe4 {[%clk 0:02:58.7]} 5. Nxe4 {[%clk 0:02:55]}
5... Be7 {[%clk 0:02:59.2]} 6. Nxf6+ {[%clk 0:02:51.7]} 6... Bxf6 {[%clk
0:02:58.8]} 7. Bxf6 {[%clk 0:02:52.3]} 7... Qxf6 {[%clk 0:02:59.3]} 8. Nf3
{[%clk 0:02:52.4]} 8... O-O {[%clk 0:02:59.3]} 9. Bd3 {[%clk 0:02:49.4]} 9... c5
{[%clk 0:02:59]} 10. O-O {[%clk 0:02:48.8]} 10... cxd4 {[%clk 0:02:58.9]} 11.
Nxd4 {[%clk 0:02:48.7]} 11... Rd8 {[%clk 0:02:52.3]} 12. Nb3 {[%clk 0:02:42.8]}
12... Qxb2 {[%clk 0:02:43.8]} 13. Bxh7+ {[%clk 0:02:41.9]} 13... Kxh7 {[%clk
0:02:43.7]} 14. Qxd8 {[%clk 0:02:42.7]} 14... Nc6 {[%clk 0:02:37.6]} 15. Qc7
{[%clk 0:02:09.8]} 15... Qf6 {[%clk 0:02:09.7]} 16. Rad1 {[%clk 0:02:01.9]}
16... e5 {[%clk 0:02:08]} 17. Rd6 {[%clk 0:02:01.4]} 17... Qg5 {[%clk
0:01:49.6]} 18. Qxf7 {[%clk 0:01:36]} 18... Bf5 {[%clk 0:01:34.5]} 19. Qxb7
{[%clk 0:01:21.8]} 19... Be4 {[%clk 0:01:32.3]} 20. f3 {[%clk 0:01:13.5]} 20...
Rb8 {[%clk 0:01:32.1]} 21. Qd7 {[%clk 0:00:59.2]} 21... Qe3+ {[%clk 0:01:28.7]}
22. Kh1 {[%clk 0:00:59.6]} 22... Qe2 {[%clk 0:01:08.6]} 23. Rg1 {[%clk
0:00:59.6]} 23... Bxf3 {[%clk 0:00:52.2]} 24. Qf5+ {[%clk 0:00:58.5]} 24... Kh8
{[%clk 0:00:50.6]} 25. Qxf3 {[%clk 0:00:59.4]} 1-0

[Event "Late-Titled-Tuesday-Blitz-April-16-2024"]
[Site "Chess.com"]
[Date "2024.04.16"]
[Round "3"]
[White "Denisenko_Denis"]
[Black "BabageldiAnnaberdiyev"]
[Result "0-1"]
[WhiteElo "2418"]
[BlackElo "2601"]
[TimeControl "180+1"]
[EndTime "14:26:06 PDT"]
[Termination "BabageldiAnnaberdiyev won by resignation"]

1. d4 {[%clk 0:03:00.9]} 1... e6 {[%clk 0:03:00.9]} 2. Bf4 {[%clk 0:03:00.1]}
2... d5 {[%clk 0:03:00.6]} 3. e3 {[%clk 0:03:00.2]} 3... Bd6 {[%clk 0:03:01.2]}
4. Bg3 {[%clk 0:03:00.1]} 4... f5 {[%clk 0:03:01.2]} 5. Nf3 {[%clk 0:02:58.3]}
5... Nf6 {[%clk 0:03:01.7]} 6. Nbd2 {[%clk 0:02:57.9]} 6... O-O {[%clk
0:03:01.8]} 7. Bd3 {[%clk 0:02:56.8]} 7... Ne4 {[%clk 0:03:00.5]} 8. Bxd6 {[%clk
0:02:55.1]} 8... cxd6 {[%clk 0:02:59.5]} 9. c4 {[%clk 0:02:54.9]} 9... Nxd2
{[%clk 0:02:48.9]} 10. Qxd2 {[%clk 0:02:52.6]} 10... dxc4 {[%clk 0:02:49.1]} 11.
Bxc4 {[%clk 0:02:53.5]} 11... d5 {[%clk 0:02:48.7]} 12. Bd3 {[%clk 0:02:52.9]}
12... Nc6 {[%clk 0:02:48.6]} 13. O-O {[%clk 0:02:49.4]} 13... a6 {[%clk
0:02:48.8]} 14. Rac1 {[%clk 0:02:48.7]} 14... Bd7 {[%clk 0:02:49.3]} 15. a3
{[%clk 0:02:47.2]} 15... g5 {[%clk 0:02:35.7]} 16. Ne5 {[%clk 0:02:40.6]} 16...
Nxe5 {[%clk 0:02:34.2]} 17. dxe5 {[%clk 0:02:41.5]} 17... Bc6 {[%clk 0:02:28.1]}
18. Be2 {[%clk 0:02:29.8]} 18... Qb6 {[%clk 0:02:19.8]} 19. Qd4 {[%clk
0:02:27.9]} 19... Qxd4 {[%clk 0:01:58]} 20. exd4 {[%clk 0:02:28.8]} 20... f4
{[%clk 0:01:53.6]} 21. Rc5 {[%clk 0:02:20.3]} 21... Kf7 {[%clk 0:01:51.6]} 22.
Rfc1 {[%clk 0:02:18.6]} 22... Ke7 {[%clk 0:01:48.2]} 23. Bd3 {[%clk 0:02:11.8]}
23... h5 {[%clk 0:01:46.7]} 24. b4 {[%clk 0:01:58.9]} 24... g4 {[%clk
0:01:41.7]} 25. Bc2 {[%clk 0:01:51.4]} 25... f3 {[%clk 0:01:01.6]} 26. g3 {[%clk
0:01:47.2]} 26... Rfc8 {[%clk 0:00:58.8]} 27. Kf1 {[%clk 0:01:20.2]} 27... b6
{[%clk 0:00:53.4]} 28. Rc3 {[%clk 0:01:04.2]} 28... Bb5+ {[%clk 0:00:53.1]} 0-1

[Event "Late-Titled-Tuesday-Blitz-April-16-2024"]
[Site "Chess.com"]
[Date "2024.04.16"]
[Round "3"]
[White "jbking07"]
[Black "expii"]
[Result "1-0"]
[WhiteElo "2411"]
[BlackElo "2219"]
[TimeControl "180+1"]
[EndTime "14:26:09 PDT"]
[Termination "jbking07 won by resignation"]

1. e4 {[%clk 0:03:00.9]} 1... c5 {[%clk 0:02:57.8]} 2. Nf3 {[%clk 0:03:00.4]}
2... d6 {[%clk 0:02:50.9]} 3. d4 {[%clk 0:03:00]} 3... cxd4 {[%clk 0:02:51.8]}
4. Nxd4 {[%clk 0:03:00]} 4... Nf6 {[%clk 0:02:44.8]} 5. Nc3 {[%clk 0:03:00]}
5... g6 {[%clk 0:02:38.8]} 6. Bc4 {[%clk 0:02:56.7]} 6... Bg7 {[%clk 0:02:39.1]}
7. O-O {[%clk 0:02:53.3]} 7... O-O {[%clk 0:02:33.5]} 8. Bb3 {[%clk 0:02:52.7]}
8... Nc6 {[%clk 0:02:33.6]} 9. Re1 {[%clk 0:02:39.9]} 9... Bg4 {[%clk
0:02:28.7]} 10. f3 {[%clk 0:02:38.5]} 10... Bd7 {[%clk 0:02:27]} 11. Be3 {[%clk
0:02:36.9]} 11... Ne8 {[%clk 0:02:20.6]} 12. Qd2 {[%clk 0:02:36.2]} 12... Nc7
{[%clk 0:02:14.2]} 13. Rad1 {[%clk 0:02:30.8]} 13... Rc8 {[%clk 0:02:12.3]} 14.
a3 {[%clk 0:02:22.4]} 14... Ne6 {[%clk 0:02:04.3]} 15. Nd5 {[%clk 0:02:15.9]}
15... Nc7 {[%clk 0:01:57.1]} 16. Nxc6 {[%clk 0:02:12.1]} 16... bxc6 {[%clk
0:01:49.9]} 17. Nc3 {[%clk 0:02:11.9]} 17... c5 {[%clk 0:01:44]} 18. Nd5 {[%clk
0:02:06]} 18... e6 {[%clk 0:01:37.3]} 19. Nxc7 {[%clk 0:02:04.8]} 19... Qxc7
{[%clk 0:01:30.9]} 20. Qxd6 {[%clk 0:02:04.7]} 20... Qxd6 {[%clk 0:01:19.3]} 21.
Rxd6 {[%clk 0:02:05.6]} 21... Bc6 {[%clk 0:01:18.1]} 22. c3 {[%clk 0:02:02.6]}
22... Rb8 {[%clk 0:00:57.8]} 23. Bc4 {[%clk 0:01:57.8]} 23... Bb5 {[%clk
0:00:45.9]} 24. Ba2 {[%clk 0:01:42.4]} 24... Ba4 {[%clk 0:00:32.4]} 25. Re2
{[%clk 0:01:33.2]} 25... Rfc8 {[%clk 0:00:23.4]} 26. Red2 {[%clk 0:01:24.5]}
26... Bb3 {[%clk 0:00:19.7]} 27. Bxb3 {[%clk 0:01:22.5]} 27... Rxb3 {[%clk
0:00:20.6]} 28. Rd8+ {[%clk 0:01:22.6]} 1-0

[Event "Late-Titled-Tuesday-Blitz-April-16-2024"]
[Site "Chess.com"]
[Date "2024.04.16"]
[Round "3"]
[White "temus_galaktionov"]
[Black "GlavkonVVS"]
[Result "1-0"]
[WhiteElo "2869"]
[BlackElo "2597"]
[TimeControl "180+1"]
[EndTime "14:26:16 PDT"]
[Termination "temus_galaktionov won by resignation"]

1. d4 {[%clk 0:02:57.5]} 1... Nf6 {[%clk 0:03:00.5]} 2. c4 {[%clk 0:02:56.2]}
2... c5 {[%clk 0:03:00.8]} 3. d5 {[%clk 0:02:56.4]} 3... e6 {[%clk 0:03:01.4]}
4. Nc3 {[%clk 0:02:56.3]} 4... exd5 {[%clk 0:03:01.6]} 5. cxd5 {[%clk
0:02:57.2]} 5... d6 {[%clk 0:03:02.2]} 6. e4 {[%clk 0:02:57.2]} 6... g6 {[%clk
0:03:02.7]} 7. h3 {[%clk 0:02:57.4]} 7... Bg7 {[%clk 0:03:03.3]} 8. Nf3 {[%clk
0:02:57.7]} 8... O-O {[%clk 0:03:03.2]} 9. Bd3 {[%clk 0:02:58.3]} 9... b5 {[%clk
0:03:03]} 10. Nxb5 {[%clk 0:02:57.9]} 10... Nxe4 {[%clk 0:03:02.6]} 11. Bxe4
{[%clk 0:02:58.8]} 11... Re8 {[%clk 0:03:03]} 12. O-O {[%clk 0:02:58.5]} 12...
Rxe4 {[%clk 0:03:02]} 13. Bg5 {[%clk 0:02:59.2]} 13... Qb6 {[%clk 0:02:58.8]}
14. Nc3 {[%clk 0:02:59.7]} 14... Rb4 {[%clk 0:02:48.7]} 15. Re1 {[%clk
0:02:47.7]} 15... Bd7 {[%clk 0:02:48.6]} 16. Ne4 {[%clk 0:02:46.8]} 16... Bxb2
{[%clk 0:02:23.9]} 17. Rb1 {[%clk 0:02:41.8]} 17... Bf5 {[%clk 0:02:01.5]} 18.
Rxb2 {[%clk 0:02:30.5]} 18... Rxb2 {[%clk 0:01:59.3]} 19. Nf6+ {[%clk
0:02:30.2]} 19... Kg7 {[%clk 0:01:57.7]} 20. Qc1 {[%clk 0:01:13.4]} 20... Na6
{[%clk 0:00:40.4]} 21. Ne8+ {[%clk 0:00:58.4]} 21... Rxe8 {[%clk 0:00:39.3]} 22.
Bh6+ {[%clk 0:00:57.8]} 1-0

[Event "Late-Titled-Tuesday-Blitz-April-16-2024"]
[Site "Chess.com"]
[Date "2024.04.16"]
[Round "3"]
[White "Yushko_Olga"]
[Black "zverr1"]
[Result "0-1"]
[WhiteElo "2297"]
[BlackElo "2495"]
[TimeControl "180+1"]
[EndTime "14:26:23 PDT"]
[Termination "zverr1 won by resignation"]

1. d4 {[%clk 0:02:58.1]} 1... Nf6 {[%clk 0:02:59.6]} 2. c4 {[%clk 0:02:58.1]}
2... g6 {[%clk 0:02:59.7]} 3. Nc3 {[%clk 0:02:56.5]} 3... d5 {[%clk 0:02:58.7]}
4. cxd5 {[%clk 0:02:54.9]} 4... Nxd5 {[%clk 0:02:59.6]} 5. Bd2 {[%clk
0:02:55.4]} 5... Bg7 {[%clk 0:02:59.5]} 6. e4 {[%clk 0:02:55.4]} 6... Nxc3
{[%clk 0:02:59.8]} 7. Bxc3 {[%clk 0:02:53.3]} 7... O-O {[%clk 0:02:59.1]} 8. Ne2
{[%clk 0:02:48.8]} 8... c5 {[%clk 0:02:58.5]} 9. g3 {[%clk 0:02:44.1]} 9... Bg4
{[%clk 0:02:54.4]} 10. dxc5 {[%clk 0:02:39.3]} 10... Bxc3+ {[%clk 0:02:49.2]}
11. bxc3 {[%clk 0:02:36.8]} 11... Qa5 {[%clk 0:02:37.8]} 12. Qb3 {[%clk
0:02:18.2]} 12... Bf3 {[%clk 0:02:32.5]} 13. Rg1 {[%clk 0:02:17.9]} 13... Bxe4
{[%clk 0:02:09.4]} 14. Bg2 {[%clk 0:02:05.3]} 14... Bxg2 {[%clk 0:02:05.3]} 15.
Rxg2 {[%clk 0:02:06.2]} 15... Na6 {[%clk 0:01:51.9]} 16. Qxb7 {[%clk 0:01:59.2]}
16... Nxc5 {[%clk 0:01:47.8]} 17. Qf3 {[%clk 0:01:42.7]} 17... Rad8 {[%clk
0:01:35.1]} 18. Nd4 {[%clk 0:01:37.4]} 18... Rxd4 {[%clk 0:01:29.3]} 19. Kf1
{[%clk 0:01:31.1]} 19... Rd3 {[%clk 0:01:26.5]} 20. Qe2 {[%clk 0:01:30]} 20...
Qxc3 {[%clk 0:01:22.8]} 21. Re1 {[%clk 0:01:18.3]} 21... Rd2 {[%clk 0:01:03.8]}
22. Qxe7 {[%clk 0:01:14.1]} 22... Ne6 {[%clk 0:00:59.2]} 23. Kg1 {[%clk
0:01:08.5]} 23... Rd7 {[%clk 0:00:52]} 24. Rxe6 {[%clk 0:00:48.8]} 24... Rd1+
{[%clk 0:00:46.6]} 0-1

[Event "Late-Titled-Tuesday-Blitz-April-16-2024"]
[Site "Chess.com"]
[Date "2024.04.16"]
[Round "3"]
[White "wild3000"]
[Black "CaspiIsrael"]
[Result "0-1"]
[WhiteElo "2484"]
[BlackElo "2735"]
[TimeControl "180+1"]
[EndTime "14:26:27 PDT"]
[Termination "CaspiIsrael won by resignation"]

1. d4 {[%clk 0:02:35.6]} 1... Nf6 {[%clk 0:02:57.4]} 2. c4 {[%clk 0:02:35.5]}
2... d6 {[%clk 0:02:52.1]} 3. Nf3 {[%clk 0:02:34.5]} 3... Bf5 {[%clk 0:02:51.1]}
4. Nc3 {[%clk 0:02:33.8]} 4... g6 {[%clk 0:02:50.1]} 5. Qb3 {[%clk 0:02:31.4]}
5... b6 {[%clk 0:02:49.5]} 6. g3 {[%clk 0:02:29.3]} 6... Ne4 {[%clk 0:02:42.9]}
7. Bg2 {[%clk 0:02:23.7]} 7... Nc6 {[%clk 0:02:32.6]} 8. g4 {[%clk 0:02:10.6]}
8... Na5 {[%clk 0:02:23.7]} 9. Qc2 {[%clk 0:01:45.3]} 9... Nxf2 {[%clk 0:02:12]}
10. gxf5 {[%clk 0:01:42.2]} 10... Nxh1 {[%clk 0:02:12.9]} 11. Bxh1 {[%clk
0:01:40]} 11... Bg7 {[%clk 0:02:08.2]} 12. Qa4+ {[%clk 0:01:21.3]} 12... Qd7
{[%clk 0:02:01.9]} 13. Qxd7+ {[%clk 0:01:19.9]} 13... Kxd7 {[%clk 0:02:02.8]}
14. b3 {[%clk 0:01:06.5]} 14... gxf5 {[%clk 0:02:00.6]} 15. Nh4 {[%clk
0:01:06.4]} 15... Bxd4 {[%clk 0:01:56.9]} 16. Bd2 {[%clk 0:01:03.6]} 16... Rag8
{[%clk 0:01:55.3]} 17. O-O-O {[%clk 0:01:02.1]} 17... e6 {[%clk 0:01:52.3]} 18.
Nb5 {[%clk 0:00:53.4]} 18... Bf6 {[%clk 0:01:48.9]} 19. Nf3 {[%clk 0:00:53.3]}
19... Nc6 {[%clk 0:01:46.9]} 20. e3 {[%clk 0:00:47.3]} 20... a6 {[%clk
0:01:46.7]} 21. Nbd4 {[%clk 0:00:47.2]} 21... Nxd4 {[%clk 0:01:46.6]} 22. exd4
{[%clk 0:00:46.3]} 22... Rg4 {[%clk 0:01:45.6]} 23. Be3 {[%clk 0:00:45.4]} 23...
Rhg8 {[%clk 0:01:44]} 24. Kd2 {[%clk 0:00:40.2]} 24... a5 {[%clk 0:01:36]} 25.
Ke2 {[%clk 0:00:39.2]} 25... h5 {[%clk 0:01:33.4]} 26. Rg1 {[%clk 0:00:30.2]}
26... Ke7 {[%clk 0:01:18.4]} 27. h3 {[%clk 0:00:29.3]} 27... Rg3 {[%clk
0:01:14.6]} 28. Bg2 {[%clk 0:00:22.4]} 28... Rxg2+ {[%clk 0:01:14.6]} 29. Rxg2
{[%clk 0:00:21.5]} 29... Rxg2+ {[%clk 0:01:15.5]} 0-1

[Event "Late-Titled-Tuesday-Blitz-April-16-2024"]
[Site "Chess.com"]
[Date "2024.04.16"]
[Round "3"]
[White "trriinu"]
[Black "SHIVACalypso"]
[Result "1-0"]
[WhiteElo "2265"]
[BlackElo "2435"]
[TimeControl "180+1"]
[EndTime "14:26:27 PDT"]
[Termination "trriinu won by resignation"]

1. e4 {[%clk 0:02:59.1]} 1... c6 {[%clk 0:02:56]} 2. Nc3 {[%clk 0:02:58.3]} 2...
d5 {[%clk 0:02:53.6]} 3. Nf3 {[%clk 0:02:58.8]} 3... dxe4 {[%clk 0:02:53]} 4.
Nxe4 {[%clk 0:02:59.7]} 4... Nf6 {[%clk 0:02:53]} 5. Qe2 {[%clk 0:02:58.6]} 5...
Nxe4 {[%clk 0:02:44.5]} 6. Qxe4 {[%clk 0:02:59.5]} 6... Nd7 {[%clk 0:02:41.4]}
7. Bc4 {[%clk 0:02:59.5]} 7... Nf6 {[%clk 0:02:40.8]} 8. Ne5 {[%clk 0:02:59.5]}
8... e6 {[%clk 0:02:36.4]} 9. Qe2 {[%clk 0:02:59.4]} 9... Bd6 {[%clk 0:02:33.3]}
10. d4 {[%clk 0:02:47.4]} 10... O-O {[%clk 0:02:32.9]} 11. O-O {[%clk
0:02:46.9]} 11... b5 {[%clk 0:02:30.3]} 12. Bd3 {[%clk 0:02:46.7]} 12... Qc7
{[%clk 0:02:30.3]} 13. c3 {[%clk 0:02:43.8]} 13... Bb7 {[%clk 0:02:30.7]} 14.
Bg5 {[%clk 0:02:43.2]} 14... Nd7 {[%clk 0:02:21.7]} 15. Rae1 {[%clk 0:02:28.3]}
15... f6 {[%clk 0:01:54.3]} 16. Qh5 {[%clk 0:02:12.4]} 16... f5 {[%clk
0:01:54.5]} 17. Nf3 {[%clk 0:01:50.4]} 17... Nf6 {[%clk 0:01:50]} 18. Qh4 {[%clk
0:01:28.8]} 18... h6 {[%clk 0:01:49]} 19. Rxe6 {[%clk 0:00:48.3]} 19... hxg5
{[%clk 0:01:47.2]} 20. Nxg5 {[%clk 0:00:48.5]} 20... Bf4 {[%clk 0:01:33.5]} 21.
Rxf6 {[%clk 0:00:33.9]} 21... gxf6 {[%clk 0:01:34]} 22. Ne6 {[%clk 0:00:33.5]}
22... Bxh2+ {[%clk 0:01:22]} 23. Kh1 {[%clk 0:00:18.6]} 23... Qh7 {[%clk
0:01:22.3]} 24. Qxh7+ {[%clk 0:00:15.5]} 24... Kxh7 {[%clk 0:01:23.2]} 25. Nxf8+
{[%clk 0:00:14]} 25... Rxf8 {[%clk 0:01:23.8]} 26. Bxf5+ {[%clk 0:00:14.5]}
26... Kh6 {[%clk 0:01:24.2]} 27. Kxh2 {[%clk 0:00:15.1]} 27... Kg5 {[%clk
0:01:24.1]} 28. g4 {[%clk 0:00:14.7]} 28... Re8 {[%clk 0:01:23.9]} 29. Kg3
{[%clk 0:00:14.6]} 29... Re2 {[%clk 0:01:23.5]} 30. f4+ {[%clk 0:00:14.6]} 30...
Kh6 {[%clk 0:01:23.2]} 31. Rh1+ {[%clk 0:00:14.9]} 31... Kg7 {[%clk 0:01:23.7]}
32. Rh7+ {[%clk 0:00:15.4]} 32... Kg8 {[%clk 0:01:24.4]} 33. Rxb7 {[%clk
0:00:16.3]} 1-0

[Event "Late-Titled-Tuesday-Blitz-April-16-2024"]
[Site "Chess.com"]
[Date "2024.04.16"]
[Round "3"]
[White "cedchass2006"]
[Black "AlexeiShirov"]
[Result "0-1"]
[WhiteElo "2402"]
[BlackElo "2804"]
[TimeControl "180+1"]
[EndTime "14:26:29 PDT"]
[Termination "AlexeiShirov won by resignation"]

1. e4 {[%clk 0:02:59.5]} 1... e5 {[%clk 0:02:59.4]} 2. Nf3 {[%clk 0:02:59.1]}
2... Nc6 {[%clk 0:02:59.5]} 3. Bb5 {[%clk 0:02:59]} 3... a6 {[%clk 0:02:59.6]}
4. Ba4 {[%clk 0:02:58.8]} 4... Nf6 {[%clk 0:02:59.6]} 5. O-O {[%clk 0:02:58.6]}
5... b5 {[%clk 0:02:59.5]} 6. Bb3 {[%clk 0:02:58.3]} 6... Bc5 {[%clk 0:03:00.2]}
7. c3 {[%clk 0:02:50.7]} 7... d6 {[%clk 0:02:59.9]} 8. d4 {[%clk 0:02:50.5]}
8... Bb6 {[%clk 0:03:00]} 9. Be3 {[%clk 0:02:47.6]} 9... O-O {[%clk 0:02:58]}
10. Nbd2 {[%clk 0:02:46.3]} 10... Bg4 {[%clk 0:02:55.7]} 11. h3 {[%clk
0:02:43.7]} 11... Bh5 {[%clk 0:02:52]} 12. Re1 {[%clk 0:02:41.9]} 12... exd4
{[%clk 0:02:47.2]} 13. cxd4 {[%clk 0:02:33.4]} 13... Bxd4 {[%clk 0:02:46.7]} 14.
Qc2 {[%clk 0:02:09.3]} 14... Nb4 {[%clk 0:02:41.6]} 15. Qb1 {[%clk 0:02:03.4]}
15... Bxe3 {[%clk 0:02:39.6]} 16. Rxe3 {[%clk 0:02:03.5]} 16... c5 {[%clk
0:02:39.5]} 17. a3 {[%clk 0:02:02.5]} 17... Nc6 {[%clk 0:02:37.9]} 18. Bd5
{[%clk 0:02:00.6]} 18... Nxd5 {[%clk 0:02:33.3]} 19. exd5 {[%clk 0:02:00]} 19...
Bg6 {[%clk 0:02:23]} 20. Qe1 {[%clk 0:01:56.5]} 20... Nd4 {[%clk 0:02:22.6]} 21.
Nxd4 {[%clk 0:01:48.1]} 21... cxd4 {[%clk 0:02:22.5]} 22. Rg3 {[%clk 0:01:45]}
22... Re8 {[%clk 0:02:20.8]} 23. Qd1 {[%clk 0:01:43.4]} 23... Qf6 {[%clk
0:02:17.6]} 24. Nf3 {[%clk 0:01:42.8]} 24... d3 {[%clk 0:02:17.5]} 25. Ne1
{[%clk 0:01:33.1]} 25... Qxb2 {[%clk 0:01:44.1]} 26. Nxd3 {[%clk 0:01:27.1]}
26... Qe2 {[%clk 0:01:39.9]} 27. Qxe2 {[%clk 0:01:24.2]} 27... Rxe2 {[%clk
0:01:38.6]} 28. Nf4 {[%clk 0:01:25.1]} 28... Rc2 {[%clk 0:01:34.3]} 29. Nxg6
{[%clk 0:01:24.1]} 29... hxg6 {[%clk 0:01:33.3]} 30. Re3 {[%clk 0:01:22]} 30...
Kf8 {[%clk 0:01:31.4]} 31. Rd1 {[%clk 0:01:20.6]} 31... a5 {[%clk 0:01:29.1]}
32. Rb3 {[%clk 0:01:19.6]} 32... Rc5 {[%clk 0:01:27.1]} 33. g3 {[%clk
0:01:18.7]} 33... Re8 {[%clk 0:01:19]} 34. Rdb1 {[%clk 0:01:15.1]} 34... Rb8
{[%clk 0:01:18.1]} 35. Rd1 {[%clk 0:01:14.9]} 35... b4 {[%clk 0:01:17.5]} 36.
Rdb1 {[%clk 0:01:10.5]} 36... Rxd5 {[%clk 0:01:14.7]} 37. axb4 {[%clk
0:01:10.3]} 37... Rdb5 {[%clk 0:01:13.9]} 38. Rd1 {[%clk 0:01:09.6]} 38... Rxb4
{[%clk 0:01:12.2]} 39. Ra3 {[%clk 0:01:08]} 39... Rb1 {[%clk 0:01:10.5]} 40. Rd3
{[%clk 0:00:56.3]} 40... Rxd1+ {[%clk 0:01:09.2]} 41. Rxd1 {[%clk 0:00:57.2]}
41... a4 {[%clk 0:01:08.5]} 42. Rxd6 {[%clk 0:00:56.2]} 42... Ra8 {[%clk
0:01:08.5]} 43. Rd2 {[%clk 0:00:55.2]} 43... a3 {[%clk 0:01:08.9]} 44. Ra2
{[%clk 0:00:56.1]} 44... Ke7 {[%clk 0:01:08.9]} 45. Kg2 {[%clk 0:00:57]} 45...
Kd6 {[%clk 0:01:08.8]} 46. h4 {[%clk 0:00:57.9]} 46... Kc5 {[%clk 0:01:08.6]}
0-1